[Event "*** Titled Tuesday Blitz"]
[Site "Chess.com"]
[Date "2020.10.27"]
[Round "8"]
[White "dopolian"]
[Black "katchesskat"]
[Result "0-1"]
[WhiteElo "2414"]
[BlackElo "2266"]
[TimeControl "180+1"]
[EndTime "11:31:00 PDT"]
[Termination "katchesskat won on time"]

1. Nf3 {[%clk 0:03:00.9]} 1... c5 {[%clk 0:03:00.9]} 2. d4 {[%clk 0:03:00.3]}
2... cxd4 {[%clk 0:03:00.7]} 3. Nxd4 {[%clk 0:02:59.8]} 3... a6 {[%clk
0:02:58.3]} 4. c4 {[%clk 0:02:59.2]} 4... e6 {[%clk 0:02:58.4]} 5. Nc3 {[%clk
0:02:59.1]} 5... Qc7 {[%clk 0:02:58.7]} 6. e4 {[%clk 0:02:56.8]} 6... Nf6 {[%clk
0:02:58.9]} 7. Be2 {[%clk 0:02:48.6]} 7... b6 {[%clk 0:02:59.1]} 8. O-O {[%clk
0:02:48.4]} 8... Bb7 {[%clk 0:02:58.5]} 9. f3 {[%clk 0:02:48]} 9... Bd6 {[%clk
0:02:56.5]} 10. g3 {[%clk 0:01:25.4]} 10... Bc5 {[%clk 0:02:54.5]} 11. Be3
{[%clk 0:01:24.5]} 11... h5 {[%clk 0:02:53.5]} 12. Qd3 {[%clk 0:01:04.6]} 12...
h4 {[%clk 0:02:52.8]} 13. f4 {[%clk 0:01:02.5]} 13... hxg3 {[%clk 0:02:47.9]}
14. hxg3 {[%clk 0:01:03.4]} 14... Nc6 {[%clk 0:02:35.4]} 15. Nxc6 {[%clk
0:00:57.3]} 15... Qxc6 {[%clk 0:02:33.5]} 16. Bf3 {[%clk 0:00:53.2]} 16... Bxe3+
{[%clk 0:02:22.5]} 17. Qxe3 {[%clk 0:00:54.1]} 17... Qxc4 {[%clk 0:02:18.2]} 18.
Qxb6 {[%clk 0:00:39.8]} 18... Bxe4 {[%clk 0:02:13.3]} 19. Nxe4 {[%clk
0:00:38.3]} 19... Nxe4 {[%clk 0:02:12.3]} 20. Rac1 {[%clk 0:00:34.9]} 20... Qd3
{[%clk 0:01:56.8]} 21. Qb3 {[%clk 0:00:31.1]} 21... Qxb3 {[%clk 0:01:50.7]} 22.
axb3 {[%clk 0:00:32]} 22... f5 {[%clk 0:01:45.2]} 23. Rfe1 {[%clk 0:00:27.2]}
23... d5 {[%clk 0:01:43.6]} 24. Rc7 {[%clk 0:00:25.3]} 24... O-O {[%clk
0:01:40.1]} 25. Kg2 {[%clk 0:00:13.5]} 25... Rf7 {[%clk 0:01:36.8]} 26. Rc6
{[%clk 0:00:12.9]} 26... Re7 {[%clk 0:01:34.3]} 27. Rec1 {[%clk 0:00:11.6]}
27... Kf7 {[%clk 0:01:32.7]} 28. Rb6 {[%clk 0:00:11.2]} 28... a5 {[%clk
0:01:31.8]} 29. Rcc6 {[%clk 0:00:10]} 29... a4 {[%clk 0:01:28.7]} 30. b4 {[%clk
0:00:09.1]} 30... a3 {[%clk 0:01:27.4]} 31. bxa3 {[%clk 0:00:09.8]} 31... Rxa3
{[%clk 0:01:27.8]} 32. Rc2 {[%clk 0:00:10]} 32... Rb3 {[%clk 0:01:24.2]} 33. b5
{[%clk 0:00:09.6]} 33... Ra7 {[%clk 0:01:22.1]} 34. Ra6 {[%clk 0:00:08.5]} 34...
Rb7 {[%clk 0:01:15.9]} 35. Be2 {[%clk 0:00:06.1]} 35... Nc3 {[%clk 0:01:13.2]}
36. Bf1 {[%clk 0:00:03.7]} 36... Nxb5 {[%clk 0:01:12.6]} 37. Bxb5 {[%clk
0:00:04]} 37... R3xb5 {[%clk 0:01:10.8]} 38. Rcc6 {[%clk 0:00:04.3]} 38... Rb2+
{[%clk 0:01:09.4]} 39. Kh3 {[%clk 0:00:03.1]} 39... Re2 {[%clk 0:01:06.4]} 40.
Rd6 {[%clk 0:00:01.8]} 40... Rbb2 {[%clk 0:00:55.7]} 41. g4 {[%clk 0:00:02]}
41... Rb3+ {[%clk 0:00:54.5]} 42. Kh4 {[%clk 0:00:02.4]} 42... fxg4 {[%clk
0:00:50.1]} 43. Kxg4 {[%clk 0:00:02.9]} 43... Rg2+ {[%clk 0:00:44.6]} 44. Kh4
{[%clk 0:00:03.2]} 44... Rg6 {[%clk 0:00:44.1]} 45. f5 {[%clk 0:00:01.7]} 45...
Rh6+ {[%clk 0:00:43.1]} 46. Kg5 {[%clk 0:00:01.8]} 46... e5 {[%clk 0:00:21.5]}
47. Ra7+ {[%clk 0:00:01.3]} 47... Kg8 {[%clk 0:00:18.2]} 48. Rxh6 {[%clk
0:00:01.6]} 48... gxh6+ {[%clk 0:00:17]} 49. Kg6 {[%clk 0:00:01.7]} 49... Rg3+
{[%clk 0:00:16.4]} 50. Kf6 {[%clk 0:00:02.3]} 50... e4 {[%clk 0:00:14.7]} 51.
Rd7 {[%clk 0:00:02.5]} 51... Rd3 {[%clk 0:00:13.4]} 52. Rd8+ {[%clk 0:00:02.8]}
52... Kh7 {[%clk 0:00:13.3]} 53. Rd7+ {[%clk 0:00:03.1]} 53... Kg8 {[%clk
0:00:13.8]} 54. Kg6 {[%clk 0:00:02]} 54... Kf8 {[%clk 0:00:13.7]} 55. Kf6 {[%clk
0:00:01.4]} 55... Ke8 {[%clk 0:00:13.5]} 56. Re7+ {[%clk 0:00:01.4]} 56... Kd8
{[%clk 0:00:13.3]} 57. Re5 {[%clk 0:00:01.8]} 57... Kd7 {[%clk 0:00:11]} 58. Kg7
{[%clk 0:00:01.7]} 58... Kd6 {[%clk 0:00:09.7]} 59. Re8 {[%clk 0:00:02.2]} 59...
Rg3+ {[%clk 0:00:08.6]} 60. Kf7 {[%clk 0:00:02.3]} 60... h5 {[%clk 0:00:06.3]}
61. f6 {[%clk 0:00:02.5]} 61... h4 {[%clk 0:00:06.1]} 62. Rd8+ {[%clk 0:00:03]}
62... Ke5 {[%clk 0:00:05.8]} 63. Ke7 {[%clk 0:00:03.4]} 63... h3 {[%clk
0:00:04.5]} 64. Rh8 {[%clk 0:00:03.6]} 64... Rf3 {[%clk 0:00:04.1]} 65. Rh5+
{[%clk 0:00:03.6]} 65... Kd4 {[%clk 0:00:03.9]} 66. f7 {[%clk 0:00:03.8]} 66...
e3 {[%clk 0:00:03.9]} 67. Rxh3 {[%clk 0:00:02.4]} 67... Rxf7+ {[%clk 0:00:03.1]}
68. Kxf7 {[%clk 0:00:02.5]} 68... e2 {[%clk 0:00:03.4]} 69. Rh1 {[%clk
0:00:02.8]} 69... Kd3 {[%clk 0:00:03.6]} 70. Ke6 {[%clk 0:00:02.4]} 70... d4
{[%clk 0:00:03.6]} 71. Ke5 {[%clk 0:00:02.6]} 71... Kc3 {[%clk 0:00:02.3]} 72.
Ke4 {[%clk 0:00:02.3]} 72... d3 {[%clk 0:00:02.7]} 73. Ke3 {[%clk 0:00:01.1]}
73... Kc2 {[%clk 0:00:03.1]} 0-1

[Event "*** Titled Tuesday Blitz"]
[Site "Chess.com"]
[Date "2020.10.27"]
[Round "8"]
[White "Skat2704"]
[Black "VladaSviridova"]
[Result "1-0"]
[WhiteElo "2457"]
[BlackElo "2281"]
[TimeControl "180+1"]
[EndTime "11:31:08 PDT"]
[Termination "Skat2704 won by resignation"]

1. d4 {[%clk 0:02:59.8]} 1... d5 {[%clk 0:03:00]} 2. Nf3 {[%clk 0:02:59.4]} 2...
Nf6 {[%clk 0:02:59.9]} 3. c4 {[%clk 0:02:59.1]} 3... c6 {[%clk 0:03:00.1]} 4.
Nc3 {[%clk 0:02:58.6]} 4... dxc4 {[%clk 0:02:59.6]} 5. a4 {[%clk 0:02:56.1]}
5... Bf5 {[%clk 0:02:59.1]} 6. e3 {[%clk 0:02:56]} 6... e6 {[%clk 0:02:59]} 7.
Bxc4 {[%clk 0:02:55.8]} 7... Bb4 {[%clk 0:02:59.5]} 8. O-O {[%clk 0:02:55.5]}
8... O-O {[%clk 0:02:59.7]} 9. Qe2 {[%clk 0:02:54.9]} 9... Nbd7 {[%clk
0:02:59.5]} 10. Rd1 {[%clk 0:02:47.8]} 10... Bg6 {[%clk 0:02:52.2]} 11. Na2
{[%clk 0:02:39.6]} 11... Bd6 {[%clk 0:02:36.1]} 12. b3 {[%clk 0:02:36.6]} 12...
a5 {[%clk 0:02:32.1]} 13. Bb2 {[%clk 0:02:35.6]} 13... Qc7 {[%clk 0:02:22.9]}
14. Nc3 {[%clk 0:02:24]} 14... Rfe8 {[%clk 0:02:03.2]} 15. e4 {[%clk 0:02:15.1]}
15... e5 {[%clk 0:02:02.9]} 16. d5 {[%clk 0:02:14.5]} 16... Nb6 {[%clk
0:01:58.6]} 17. Rac1 {[%clk 0:02:09.1]} 17... Bb4 {[%clk 0:01:11.7]} 18. Bd3
{[%clk 0:02:02]} 18... Rad8 {[%clk 0:00:56.7]} 19. Na2 {[%clk 0:01:59.8]} 19...
Bd6 {[%clk 0:00:55.9]} 20. Qc2 {[%clk 0:01:53.9]} 20... c5 {[%clk 0:00:53.5]}
21. Nc3 {[%clk 0:01:52.4]} 21... Nbd7 {[%clk 0:00:49.9]} 22. Nb5 {[%clk
0:01:51.4]} 22... Qb8 {[%clk 0:00:47.6]} 23. Bc3 {[%clk 0:01:49.6]} 23... b6
{[%clk 0:00:47.1]} 24. Na3 {[%clk 0:01:47.8]} 24... Nh5 {[%clk 0:00:41.2]} 25.
Nc4 {[%clk 0:01:46.2]} 25... Nf4 {[%clk 0:00:40]} 26. Bf1 {[%clk 0:01:44.6]}
26... Bh5 {[%clk 0:00:38.7]} 27. Ncd2 {[%clk 0:01:32.8]} 27... Nf6 {[%clk
0:00:27.7]} 28. g3 {[%clk 0:01:27.9]} 28... Ng6 {[%clk 0:00:27.5]} 29. Bg2
{[%clk 0:01:27.3]} 29... Qc8 {[%clk 0:00:26.7]} 30. Nc4 {[%clk 0:01:25.4]} 30...
Qc7 {[%clk 0:00:20.9]} 31. Qb2 {[%clk 0:01:21.7]} 31... Rb8 {[%clk 0:00:19.3]}
32. h3 {[%clk 0:01:10.3]} 32... Bxf3 {[%clk 0:00:18.9]} 33. Bxf3 {[%clk
0:01:10.1]} 33... h5 {[%clk 0:00:19]} 34. h4 {[%clk 0:01:08.4]} 34... Qd7 {[%clk
0:00:18.3]} 35. Qe2 {[%clk 0:01:06.3]} 35... Ng4 {[%clk 0:00:17.9]} 36. Bxg4
{[%clk 0:01:05.3]} 36... hxg4 {[%clk 0:00:17.2]} 37. Nxd6 {[%clk 0:01:03.4]}
37... Qxd6 {[%clk 0:00:17.4]} 38. Qxg4 {[%clk 0:01:03.3]} 38... Nf8 {[%clk
0:00:16]} 39. h5 {[%clk 0:01:00.1]} 39... Nh7 {[%clk 0:00:15.6]} 40. Kg2 {[%clk
0:00:59]} 40... Kh8 {[%clk 0:00:15.6]} 41. Rh1 {[%clk 0:00:57.8]} 41... Rbd8
{[%clk 0:00:15.6]} 42. h6 {[%clk 0:00:56.3]} 42... g6 {[%clk 0:00:15.5]} 43. f4
{[%clk 0:00:53.9]} 43... Nf6 {[%clk 0:00:14.3]} 44. Qf3 {[%clk 0:00:50.3]} 44...
Nd7 {[%clk 0:00:13.1]} 45. f5 {[%clk 0:00:47.4]} 45... g5 {[%clk 0:00:12.2]} 46.
g4 {[%clk 0:00:46.7]} 46... f6 {[%clk 0:00:12.4]} 47. Rh5 {[%clk 0:00:45.6]}
47... Kh7 {[%clk 0:00:12.3]} 48. Rhh1 {[%clk 0:00:41.4]} 48... Nb8 {[%clk
0:00:12.3]} 49. Rhe1 {[%clk 0:00:40.2]} 49... Na6 {[%clk 0:00:10.4]} 50. Qd3
{[%clk 0:00:39.1]} 50... Ra8 {[%clk 0:00:08.4]} 51. Re2 {[%clk 0:00:38.6]} 51...
Nc7 {[%clk 0:00:08.5]} 52. Rh1 {[%clk 0:00:37.6]} 52... Rec8 {[%clk 0:00:08.6]}
53. Qh3 {[%clk 0:00:35.7]} 53... Na6 {[%clk 0:00:08.6]} 54. Qh5 {[%clk
0:00:35.2]} 54... Rg8 {[%clk 0:00:08.3]} 55. Qf7+ {[%clk 0:00:34.6]} 55... Kh8
{[%clk 0:00:08.5]} 56. h7 {[%clk 0:00:34.3]} 56... Rg7 {[%clk 0:00:08.7]} 57.
Qe6 {[%clk 0:00:34.1]} 57... Rd8 {[%clk 0:00:07.5]} 58. Qxd6 {[%clk 0:00:33]}
58... Rxd6 {[%clk 0:00:07.4]} 59. Re3 {[%clk 0:00:33.1]} 59... Rc7 {[%clk
0:00:07.2]} 60. Reh3 {[%clk 0:00:32.6]} 60... Nb8 {[%clk 0:00:07.4]} 61. Rh6
{[%clk 0:00:32]} 61... Nd7 {[%clk 0:00:08]} 62. Bd2 {[%clk 0:00:31.5]} 62... Nf8
{[%clk 0:00:07.7]} 63. Bxg5 {[%clk 0:00:31]} 63... Nxh7 {[%clk 0:00:05.5]} 64.
Bxf6+ {[%clk 0:00:30.9]} 64... Kg8 {[%clk 0:00:04.1]} 65. Bxe5 {[%clk
0:00:30.7]} 65... Rxh6 {[%clk 0:00:04.1]} 66. Rxh6 {[%clk 0:00:30.4]} 66... Re7
{[%clk 0:00:04.8]} 67. Rg6+ {[%clk 0:00:27.1]} 67... Kf7 {[%clk 0:00:04.2]} 68.
Rg7+ {[%clk 0:00:26.2]} 68... Ke8 {[%clk 0:00:04.5]} 69. Rxe7+ {[%clk 0:00:26]}
69... Kxe7 {[%clk 0:00:04.9]} 70. Bg3 {[%clk 0:00:25.5]} 70... Kf6 {[%clk
0:00:03.3]} 71. Kf3 {[%clk 0:00:25.2]} 71... Ng5+ {[%clk 0:00:03.1]} 72. Ke3
{[%clk 0:00:25.2]} 72... Nh3 {[%clk 0:00:03.1]} 73. d6 {[%clk 0:00:24.5]} 73...
Kf7 {[%clk 0:00:02.8]} 74. e5 {[%clk 0:00:24.3]} 74... Ng5 {[%clk 0:00:03]} 75.
e6+ {[%clk 0:00:23.5]} 75... Ke8 {[%clk 0:00:03.2]} 76. Kf4 {[%clk 0:00:22.3]}
76... Nh3+ {[%clk 0:00:03.3]} 77. Ke5 {[%clk 0:00:21.9]} 77... Ng1 {[%clk
0:00:03.8]} 78. d7+ {[%clk 0:00:21.2]} 78... Ke7 {[%clk 0:00:03.9]} 79. Bh4+
{[%clk 0:00:21]} 1-0

[Event "*** Titled Tuesday Blitz"]
[Site "Chess.com"]
[Date "2020.10.27"]
[Round "8"]
[White "Infernal_XaM"]
[Black "Witik"]
[Result "1-0"]
[WhiteElo "2850"]
[BlackElo "2702"]
[TimeControl "180+1"]
[EndTime "11:31:27 PDT"]
[Termination "Infernal_XaM won on time"]

1. Nf3 {[%clk 0:02:47]} 1... d5 {[%clk 0:02:59.5]} 2. c4 {[%clk 0:02:47.9]} 2...
e6 {[%clk 0:02:59.5]} 3. g3 {[%clk 0:02:47.5]} 3... Nf6 {[%clk 0:02:43.7]} 4.
Bg2 {[%clk 0:02:47.5]} 4... Be7 {[%clk 0:02:43.5]} 5. O-O {[%clk 0:02:47]} 5...
O-O {[%clk 0:02:43.8]} 6. Qc2 {[%clk 0:02:47.3]} 6... c5 {[%clk 0:02:33.4]} 7.
cxd5 {[%clk 0:02:45.4]} 7... Nxd5 {[%clk 0:01:47.1]} 8. d4 {[%clk 0:02:44.9]}
8... cxd4 {[%clk 0:01:40.9]} 9. Nxd4 {[%clk 0:02:44.6]} 9... Bd7 {[%clk
0:01:41.5]} 10. Rd1 {[%clk 0:02:37.8]} 10... Nc6 {[%clk 0:01:40.7]} 11. Nxc6
{[%clk 0:02:37.5]} 11... Bxc6 {[%clk 0:01:37.5]} 12. Nc3 {[%clk 0:02:33.8]}
12... Nb4 {[%clk 0:01:29.4]} 13. Qb3 {[%clk 0:02:33.2]} 13... Qc7 {[%clk
0:00:57.5]} 14. Bf4 {[%clk 0:02:24.8]} 14... e5 {[%clk 0:00:57.5]} 15. Bxc6
{[%clk 0:02:24.2]} 15... bxc6 {[%clk 0:00:46.3]} 16. Be3 {[%clk 0:02:20.7]}
16... Rab8 {[%clk 0:00:42.2]} 17. Rac1 {[%clk 0:02:17.8]} 17... Nd3 {[%clk
0:00:40.6]} 18. Rxd3 {[%clk 0:02:07.3]} 18... Rxb3 {[%clk 0:00:39.8]} 19. axb3
{[%clk 0:02:08.2]} 19... Qb7 {[%clk 0:00:36.5]} 20. Na4 {[%clk 0:02:03.1]} 20...
Rd8 {[%clk 0:00:33.9]} 21. Nc5 {[%clk 0:02:02.6]} 21... Qc8 {[%clk 0:00:32.6]}
22. Rxd8+ {[%clk 0:01:58.4]} 22... Qxd8 {[%clk 0:00:30.9]} 23. Nd3 {[%clk
0:01:57.5]} 23... f6 {[%clk 0:00:26.2]} 24. Bxa7 {[%clk 0:01:55.7]} 24... Qd5
{[%clk 0:00:25.4]} 25. b4 {[%clk 0:01:42.5]} 25... g5 {[%clk 0:00:24.6]} 26. Bc5
{[%clk 0:01:41.2]} 26... Bd8 {[%clk 0:00:21.1]} 27. Ra1 {[%clk 0:01:19.6]} 27...
e4 {[%clk 0:00:20]} 28. Ne1 {[%clk 0:01:19.6]} 28... Kf7 {[%clk 0:00:17.5]} 29.
Ng2 {[%clk 0:01:15.9]} 29... Qd2 {[%clk 0:00:12]} 30. Kf1 {[%clk 0:01:15.9]}
30... f5 {[%clk 0:00:11.9]} 31. Ne3 {[%clk 0:01:13.1]} 31... Qxb2 {[%clk
0:00:11.6]} 32. Rd1 {[%clk 0:01:11.9]} 32... Bf6 {[%clk 0:00:10.4]} 33. Nxf5
{[%clk 0:01:09.2]} 33... Kg6 {[%clk 0:00:10.9]} 34. Ne3 {[%clk 0:01:08.3]} 34...
Be5 {[%clk 0:00:10.4]} 35. Rd8 {[%clk 0:00:58.9]} 35... h5 {[%clk 0:00:08.2]}
36. h3 {[%clk 0:00:56.7]} 36... Qb3 {[%clk 0:00:06.9]} 37. Re8 {[%clk
0:00:54.2]} 37... Bc3 {[%clk 0:00:07]} 38. Kg2 {[%clk 0:00:51.4]} 38... Qa2
{[%clk 0:00:04.7]} 39. Rxe4 {[%clk 0:00:48.2]} 39... Qxe2 {[%clk 0:00:04.8]} 40.
Re6+ {[%clk 0:00:45.1]} 40... Kf7 {[%clk 0:00:05.1]} 41. Rxc6 {[%clk 0:00:44.7]}
41... g4 {[%clk 0:00:05.7]} 42. hxg4 {[%clk 0:00:43.8]} 42... hxg4 {[%clk
0:00:06.6]} 43. Rd6 {[%clk 0:00:36.3]} 43... Be1 {[%clk 0:00:05.6]} 44. Nf1
{[%clk 0:00:31.6]} 44... Qf3+ {[%clk 0:00:05.5]} 45. Kg1 {[%clk 0:00:32]} 45...
Bc3 {[%clk 0:00:05.6]} 46. Nh2 {[%clk 0:00:29.9]} 46... Qe2 {[%clk 0:00:04.3]}
47. Rd5 {[%clk 0:00:24.5]} 47... Ke6 {[%clk 0:00:04]} 48. Rg5 {[%clk 0:00:21.4]}
48... Qd1+ {[%clk 0:00:03.2]} 49. Kg2 {[%clk 0:00:20.5]} 49... Bf6 {[%clk
0:00:03.3]} 50. Rxg4 {[%clk 0:00:20.5]} 50... Qd5+ {[%clk 0:00:03.9]} 51. Kg1
{[%clk 0:00:19.1]} 51... Qb3 {[%clk 0:00:04.1]} 52. Re4+ {[%clk 0:00:18.9]}
52... Kf5 {[%clk 0:00:04]} 53. Re3 {[%clk 0:00:19.2]} 53... Qb1+ {[%clk
0:00:04.1]} 54. Kg2 {[%clk 0:00:19.7]} 54... Kg6 {[%clk 0:00:05]} 55. Nf3 {[%clk
0:00:19.3]} 55... Kf7 {[%clk 0:00:05]} 56. Ne5+ {[%clk 0:00:17.5]} 56... Kg8
{[%clk 0:00:04.3]} 57. Nd3 {[%clk 0:00:16.4]} 57... Bg7 {[%clk 0:00:03.4]} 58.
Nf4 {[%clk 0:00:16.4]} 58... Qb2 {[%clk 0:00:03.2]} 59. Re8+ {[%clk 0:00:16.2]}
59... Kf7 {[%clk 0:00:03.4]} 60. Re7+ {[%clk 0:00:16.8]} 60... Kg8 {[%clk
0:00:04]} 61. Nh5 {[%clk 0:00:14.6]} 61... Be5 {[%clk 0:00:03.6]} 62. Kh3 {[%clk
0:00:11.6]} 62... Bd4 {[%clk 0:00:04]} 63. f4 {[%clk 0:00:08.6]} 63... Bxc5
{[%clk 0:00:03.7]} 64. bxc5 {[%clk 0:00:08.7]} 64... Qb1 {[%clk 0:00:03.4]} 65.
Kg4 {[%clk 0:00:06.9]} 65... Qd1+ {[%clk 0:00:01.9]} 66. Kg5 {[%clk 0:00:07.3]}
66... Kf8 {[%clk 0:00:02.6]} 67. Re5 {[%clk 0:00:07.4]} 67... Qd3 {[%clk
0:00:02.8]} 68. g4 {[%clk 0:00:07.7]} 68... Kf7 {[%clk 0:00:03.5]} 69. Rf5+
{[%clk 0:00:04.9]} 69... Ke6 {[%clk 0:00:03.6]} 70. Nf6 {[%clk 0:00:04.4]} 70...
Ke7 {[%clk 0:00:04.3]} 71. Kg6 {[%clk 0:00:04.3]} 71... Qf1 {[%clk 0:00:04.3]}
72. Re5+ {[%clk 0:00:04.2]} 72... Kd8 {[%clk 0:00:04.4]} 73. f5 {[%clk
0:00:04.5]} 73... Kc7 {[%clk 0:00:04.9]} 74. g5 {[%clk 0:00:04.4]} 74... Kc6
{[%clk 0:00:04.5]} 75. Ne4 {[%clk 0:00:03.5]} 75... Qf3 {[%clk 0:00:03.6]} 76.
Re6+ {[%clk 0:00:04.4]} 76... Kb5 {[%clk 0:00:03.4]} 77. c6 {[%clk 0:00:04.6]}
77... Qf4 {[%clk 0:00:02.9]} 78. Nf6 {[%clk 0:00:04.7]} 78... Qb8 {[%clk
0:00:03.2]} 79. Ne8 {[%clk 0:00:05.1]} 79... Qd8 {[%clk 0:00:03.3]} 80. c7
{[%clk 0:00:05.4]} 80... Qd7 {[%clk 0:00:03.6]} 81. c8=Q {[%clk 0:00:05.9]}
81... Qxc8 {[%clk 0:00:03.6]} 82. Nd6+ {[%clk 0:00:06.5]} 1-0

[Event "*** Titled Tuesday Blitz"]
[Site "Chess.com"]
[Date "2020.10.27"]
[Round "9"]
[White "poppy73"]
[Black "MathiasWomacka"]
[Result "1/2-1/2"]
[WhiteElo "2228"]
[BlackElo "2490"]
[TimeControl "180+1"]
[EndTime "11:40:03 PDT"]
[Termination "Game drawn by repetition"]

1. e4 {[%clk 0:03:00.9]} 1... c5 {[%clk 0:02:34]} 2. Nf3 {[%clk 0:02:52.4]} 2...
d6 {[%clk 0:02:33.8]} 3. d4 {[%clk 0:02:52.8]} 3... cxd4 {[%clk 0:02:34.7]} 4.
Nxd4 {[%clk 0:02:53.7]} 4... Nf6 {[%clk 0:02:34.9]} 5. Nc3 {[%clk 0:02:54.1]}
5... a6 {[%clk 0:02:34.9]} 6. Be2 {[%clk 0:02:53.7]} 6... e5 {[%clk 0:02:34.1]}
7. Nf3 {[%clk 0:02:54.1]} 7... Be7 {[%clk 0:02:32.5]} 8. Bg5 {[%clk 0:02:53.5]}
8... Nbd7 {[%clk 0:02:20.4]} 9. a4 {[%clk 0:02:52.3]} 9... h6 {[%clk 0:02:20.2]}
10. Be3 {[%clk 0:02:50]} 10... Ng4 {[%clk 0:02:12.5]} 11. Bc1 {[%clk 0:02:49.1]}
11... Ngf6 {[%clk 0:02:09.5]} 12. Be3 {[%clk 0:02:48.6]} 12... Ng4 {[%clk
0:02:09]} 13. Bc1 {[%clk 0:02:47.8]} 13... Ngf6 {[%clk 0:02:09]} 14. Be3 {[%clk
0:02:47.8]} 1/2-1/2

[Event "*** Titled Tuesday Blitz"]
[Site "Chess.com"]
[Date "2020.10.27"]
[Round "9"]
[White "BJthechessgod"]
[Black "fabianvivasz"]
[Result "0-1"]
[WhiteElo "2293"]
[BlackElo "2430"]
[TimeControl "180+1"]
[EndTime "11:40:58 PDT"]
[Termination "fabianvivasz won by resignation"]

1. e4 {[%clk 0:03:00.9]} 1... e5 {[%clk 0:02:58.7]} 2. Nf3 {[%clk 0:02:58.4]}
2... Nc6 {[%clk 0:02:58.6]} 3. Bc4 {[%clk 0:02:59.3]} 3... Nf6 {[%clk
0:02:58.5]} 4. d3 {[%clk 0:02:59]} 4... Bc5 {[%clk 0:02:57]} 5. O-O {[%clk
0:02:59.3]} 5... O-O {[%clk 0:02:56.3]} 6. c3 {[%clk 0:02:59.9]} 6... d5 {[%clk
0:02:56.3]} 7. exd5 {[%clk 0:03:00]} 7... Nxd5 {[%clk 0:02:57.2]} 8. b4 {[%clk
0:02:57.8]} 8... Bb6 {[%clk 0:02:51]} 9. a4 {[%clk 0:02:56.1]} 9... a6 {[%clk
0:02:27.3]} 10. Re1 {[%clk 0:02:46.6]} 10... Bg4 {[%clk 0:02:22.4]} 11. Qb3
{[%clk 0:02:28.6]} 11... Bxf3 {[%clk 0:02:16.3]} 12. gxf3 {[%clk 0:02:29.5]}
12... Qh4 {[%clk 0:02:05.5]} 13. Be3 {[%clk 0:01:58.8]} 13... Nxe3 {[%clk
0:02:00.3]} 14. fxe3 {[%clk 0:01:59.7]} 14... Qxe1+ {[%clk 0:02:00]} 0-1

[Event "*** Titled Tuesday Blitz"]
[Site "Chess.com"]
[Date "2020.10.27"]
[Round "9"]
[White "Cambek64"]
[Black "NotFischer"]
[Result "0-1"]
[WhiteElo "2300"]
[BlackElo "2130"]
[TimeControl "180+1"]
[EndTime "11:42:08 PDT"]
[Termination "NotFischer won by resignation"]

1. e4 {[%clk 0:02:55.4]} 1... d5 {[%clk 0:02:59.3]} 2. exd5 {[%clk 0:02:54.5]}
2... Nf6 {[%clk 0:02:58.4]} 3. Nc3 {[%clk 0:02:55.4]} 3... Nxd5 {[%clk
0:02:58.1]} 4. Bc4 {[%clk 0:02:56]} 4... Nb6 {[%clk 0:02:58.2]} 5. Bb3 {[%clk
0:02:55.5]} 5... Nc6 {[%clk 0:02:58.3]} 6. Nf3 {[%clk 0:02:54.3]} 6... Bf5
{[%clk 0:02:57.8]} 7. O-O {[%clk 0:02:52.6]} 7... e6 {[%clk 0:02:57.9]} 8. Re1
{[%clk 0:02:52.2]} 8... Be7 {[%clk 0:02:57.5]} 9. h3 {[%clk 0:02:51.4]} 9... O-O
{[%clk 0:02:57.3]} 10. d4 {[%clk 0:02:51.6]} 10... a5 {[%clk 0:02:57.3]} 11. a3
{[%clk 0:02:50.9]} 11... a4 {[%clk 0:02:57.2]} 12. Ba2 {[%clk 0:02:51.3]} 12...
Bf6 {[%clk 0:02:53.2]} 13. Ne4 {[%clk 0:02:50]} 13... Bxd4 {[%clk 0:02:51.5]}
14. Nxd4 {[%clk 0:02:45.3]} 14... Nxd4 {[%clk 0:02:52]} 15. Bg5 {[%clk
0:02:36.5]} 15... Qd7 {[%clk 0:02:30.2]} 16. Nf6+ {[%clk 0:02:24.5]} 16... gxf6
{[%clk 0:02:28.1]} 17. Bxf6 {[%clk 0:02:24.8]} 17... Nxc2 {[%clk 0:02:15.2]} 18.
Qh5 {[%clk 0:02:20.3]} 18... Qd2 {[%clk 0:01:57.3]} 19. Re3 {[%clk 0:02:04.7]}
19... Nd7 {[%clk 0:01:44.1]} 20. Rg3+ {[%clk 0:01:52.8]} 20... Bg6 {[%clk
0:01:43.6]} 21. Rd1 {[%clk 0:01:51.6]} 21... Nxf6 {[%clk 0:01:41.5]} 22. Rxd2
{[%clk 0:01:48]} 22... Nxh5 {[%clk 0:01:40.3]} 23. Rc3 {[%clk 0:01:44.8]} 23...
Rad8 {[%clk 0:01:36.3]} 0-1

[Event "*** Titled Tuesday Blitz"]
[Site "Chess.com"]
[Date "2020.10.27"]
[Round "9"]
[White "Azerichess"]
[Black "GigaQuparadze"]
[Result "1-0"]
[WhiteElo "2997"]
[BlackElo "2845"]
[TimeControl "180+1"]
[EndTime "11:42:12 PDT"]
[Termination "Azerichess won by resignation"]

1. e4 {[%clk 0:03:00.9]} 1... c5 {[%clk 0:02:59.6]} 2. Nc3 {[%clk 0:03:01.2]}
2... e6 {[%clk 0:02:59.6]} 3. Nf3 {[%clk 0:03:01.3]} 3... a6 {[%clk 0:02:59.6]}
4. g3 {[%clk 0:03:01.8]} 4... b5 {[%clk 0:02:59.9]} 5. Bg2 {[%clk 0:03:00.9]}
5... Bb7 {[%clk 0:03:00.4]} 6. d3 {[%clk 0:02:57.4]} 6... Nc6 {[%clk 0:02:58.8]}
7. O-O {[%clk 0:02:57.4]} 7... Nf6 {[%clk 0:02:57.1]} 8. Ng5 {[%clk 0:02:57.6]}
8... h6 {[%clk 0:02:55.9]} 9. Nh3 {[%clk 0:02:57.6]} 9... d5 {[%clk 0:02:53.9]}
10. exd5 {[%clk 0:02:51.8]} 10... exd5 {[%clk 0:02:54.8]} 11. Nf4 {[%clk
0:02:46.1]} 11... Nd4 {[%clk 0:02:44.3]} 12. Nh5 {[%clk 0:02:45.6]} 12... Ne6
{[%clk 0:02:09.6]} 13. Nxf6+ {[%clk 0:02:42.1]} 13... gxf6 {[%clk 0:02:09.9]}
14. Qh5 {[%clk 0:02:34.5]} 14... Nc7 {[%clk 0:01:47.7]} 15. Re1+ {[%clk
0:02:30.8]} 15... Be7 {[%clk 0:01:44.1]} 16. Bf4 {[%clk 0:02:30.9]} 16... Rc8
{[%clk 0:01:30.6]} 17. Bh3 {[%clk 0:02:27.1]} 17... Ra8 {[%clk 0:01:26.1]} 18.
Re2 {[%clk 0:02:13.8]} 18... d4 {[%clk 0:01:01.2]} 19. Rae1 {[%clk 0:02:12]}
19... dxc3 {[%clk 0:00:52.8]} 20. Rxe7+ {[%clk 0:02:11.3]} 20... Qxe7 {[%clk
0:00:52.6]} 21. Rxe7+ {[%clk 0:02:12.2]} 21... Kxe7 {[%clk 0:00:53.5]} 22. Qxc5+
{[%clk 0:02:12.7]} 1-0